fUSD/lending_fUSD_20260205
["ID","MTS","AMOUNT","RATE_DAILY","PERIOD"]
[404592942,1770318908750,183.0,0.00013534,2]
[404592943,1770318912695,4757.717073,0.00013492,2]
[404592944,1770318926184,359.6960638,0.0002,30]
[404592946,1770318968739,5059.292927,7.945e-05,2]
[404592947,1770318968762,1621.381508,7.945e-05,2]
[404592952,1770319188094,-179.33,0.000135,2]
[404592953,1770319188126,-203.493,0.00013554,2]
[404592954,1770319188156,-500.0,0.00013555,2]
[404592955,1770319188190,-300.0,0.00013557,2]
[404592956,1770319188220,-1157.31067357,0.00013558,2]
[404592957,1770319188250,-500.0,0.00013558,2]
[404592958,1770319188279,-300.0,0.00013559,2]
[404592959,1770319188306,-300.0,0.00013559,2]
[404592960,1770319188334,-360.95256819,0.00013559,2]
[404592961,1770319210337,-250.0,0.0001356,2]
[404592963,1770319225287,-262.0,0.0001356,2]
[404592977,1770319408903,186.22,0.00011746,2]
[404592978,1770319416998,-300.0,0.00013561,2]
[404592979,1770319430189,-250.0,0.00013561,2]
[404592980,1770319462611,199.92,0.00021,30]
[404592982,1770319531704,454.03980588,0.0002,120]
[404592983,1770319563769,569.1924479,0.00011,2]
[404592984,1770319571021,-300.0,0.00013649,2]
[404592985,1770319571050,-300.0,0.00013649,2]
[404592987,1770319797474,267.6807,0.00013549,2]
[404592989,1770319816677,-262.0,0.00013652,2]
[404593009,1770319831696,-300.0,0.00013653,2]
[404593010,1770319831706,-181.56067821,0.00013654,2]
[404593011,1770319831715,-502.58453595,0.00013698,2]
[404593012,1770319831724,-176.80933524,0.00013769,2]
[404593013,1770319831733,-300.0,0.00013811,2]
[404593014,1770319831743,-178.64683708,0.00013869,2]
[404593015,1770319831755,-150.0,0.00013929,2]
[404593016,1770319831764,-823.190664,0.00014183,2]
[404593017,1770319831773,-265.32,0.00014311,2]
[404593018,1770319831783,-761.06218251,0.0001449,2]
[404593019,1770319831792,-300.0,0.00014499,2]
[404593020,1770319831801,-300.0,0.00014499,2]
[404593021,1770319831811,-1200.0,0.00014499,2]
[404593022,1770319831820,-9428.5569256,0.000145,2]
[404593023,1770319831830,-4624.62803192,0.00014541,2]
[404593051,1770319832163,-1470.07670614,0.00014541,2]
[404593053,1770319832175,-3478.84526194,0.00014541,2]
[404593055,1770319832185,-764.0,0.00014542,2]
[404593057,1770319832194,-538.0,0.00014571,2]
[404593059,1770319832204,-500.0,0.000146,2]
[404593061,1770319832213,-200.0,0.000146,5]
[404593062,1770319832223,-611.0,0.00014608,2]
[404593064,1770319832232,-930.0,0.00014637,2]
[404593065,1770319832242,-1160.82853624,0.00014649,2]
[404593066,1770319832256,-1826.92164788,0.00014649,2]
[404593067,1770319832337,-784.54454562,0.00014649,2]
[404593068,1770319832348,-661.84951085,0.00014649,2]
[404593069,1770319832363,-2452.73393138,0.00014649,2]
[404593070,1770319832377,-1151.18960832,0.00014649,2]
[404593071,1770319832392,-38378.30412596,0.00014649,2]
[404593072,1770319832403,-49107.7099987,0.00014649,2]
[404593073,1770319832427,-287.06431718,0.00014649,2]
[404593074,1770319832439,-1555.22270265,0.00014649,2]
[404593075,1770319832458,-96302.18063195,0.00014649,2]
[404593076,1770319832469,-425.44329357,0.00014649,2]
[404593077,1770319832481,-1575.21859507,0.00014649,2]
[404593078,1770319832500,-500.0,0.00014649,2]
[404593079,1770319837689,-1319.0585985,0.00014649,2]
[404593080,1770319837700,-516.02242893,0.00014649,2]
[404593081,1770319837745,-254.18043806,0.00014649,2]
[404593082,1770319837801,-446.26987052,0.00014649,2]
[404593083,1770319837813,-343.08102594,0.00014649,2]
[404593084,1770319837824,-10659.80250457,0.00014649,2]
[404593085,1770319837841,-1416.40035,0.00014649,2]
[404593086,1770319837851,-793.66649967,0.00014649,2]
[404593087,1770319837862,-628.08003274,0.00014649,2]
[404593193,1770319839787,-252.71495317,0.0001455,2]
[404593194,1770319839796,-267.9663184,0.00014649,2]
[404593195,1770319839807,-1317.45630519,0.00014649,2]
[404593196,1770319839818,-45933.44387635,0.00014649,2]
[404593197,1770319839841,-2423800.05390576,0.00014649,2]
[404593198,1770319839850,-1621.30755874,0.0001465,2]
[404593199,1770319839860,-700.6637,0.0001465,2]
[404593200,1770319839870,-186.22,0.00014682,2]
[404593201,1770319839879,-400.0,0.000147,5]
[404593202,1770319839888,-241.23,0.00014749,2]
[404593203,1770319839898,-150.99,0.00014749,2]
[404593204,1770319839905,-150.99,0.00014749,2]
[404593205,1770319839911,-299.99,0.00014749,2]
[404593206,1770319839918,-150.0,0.0001475,2]
[404593207,1770319839924,-6248.25,0.0001475,2]
[404593208,1770319839930,-2894.3,0.0001475,2]
[404593209,1770319839937,-600.0,0.000148,5]
[404593210,1770319839943,-311.0,0.00014864,2]
[404593211,1770319839949,-800.0,0.000149,5]
[404593212,1770319839956,-28020.12770979,0.0001499,2]
[404593213,1770319839965,-250.0,0.00015,2]
[404593214,1770319839971,-2500.0,0.00015014,2]
[404593215,1770319839977,-195.0,0.00015014,2]
[404593216,1770319839984,-451.51338853,0.00015014,2]
[404593217,1770319839997,-300.0,0.00015017,2]
[404593218,1770319840007,-150.56828751,0.00015017,2]
[404593219,1770319840019,-195.0,0.00015017,2]
[404593220,1770319840028,-500.0,0.00015017,2]
[404593221,1770319840037,-250.0,0.00015017,2]
[404593222,1770319840047,-600.0,0.00015017,2]
[404593223,1770319840056,-250.0,0.00015017,2]
[404593224,1770319840065,-300.0,0.00015017,2]
[404593225,1770319840075,-195.0,0.00015017,2]
[404593226,1770319840084,-300.0,0.00015017,2]
[404593227,1770319840093,-195.0,0.00015017,2]
[404593228,1770319840103,-300.0,0.00015017,2]
[404593229,1770319840112,-195.0,0.00015017,2]
[404593230,1770319840121,-13646.39,0.00015018,2]
[404593231,1770319840131,-250.0,0.00015018,2]
[404593232,1770319840140,-241.23,0.00015023,2]
[404593233,1770319840149,-265.32,0.00015106,2]
[404593234,1770319840159,-658.0,0.00015179,2]
[404593235,1770319840168,-326.0,0.0001521,2]
[404593236,1770319840177,-241.23,0.00015297,2]
[404593237,1770319840187,-178.64683708,0.00015382,2]
[404593238,1770319840196,-241.23,0.00015571,2]
[404593239,1770319840206,-2046.60264728,0.00015807,2]
[404593240,1770319840215,-241.23,0.00015845,2]
[404593241,1770319840224,-255.0,0.00015871,2]
[404593243,1770319840234,-420.0,0.00015876,2]
[404593245,1770319840243,-300.0,0.00015876,2]
[404593247,1770319840253,-265.32,0.00015901,2]
[404593248,1770319840263,-1680.0,0.00015949,2]
[404593249,1770319840273,-2566.41551652,0.0001596,2]
[404593250,1770319840282,-957.19260386,0.00016,2]
[404593251,1770319840292,-320.47368523,0.00016,2]
[404593252,1770319840302,-5956.53345956,0.00016,2]
[404593253,1770319840312,-150.0,0.00016046,2]
[404593254,1770319840322,-1856.9,0.00016046,2]
[404593255,1770319840332,-241.23,0.00016119,2]
[404593256,1770319840341,-500.0,0.00016386,2]
[404593257,1770319840351,-241.23,0.00016393,2]
[404593258,1770319840360,-160.0,0.00016511,2]
[404593259,1770319840369,-241.23,0.00016667,2]
[404593260,1770319840379,-152.01739562,0.00016679,2]
[404593261,1770319840390,-265.32,0.00016696,2]
[404593262,1770319840399,-1312.89,0.0001682,2]
[404593263,1770319840408,-178.64683708,0.00016895,2]
[404593264,1770319840417,-375.16522391,0.000169,2]
[404593265,1770319840427,-241.23,0.00016941,2]
[404593266,1770319840435,-945.43791674,0.00016999,2]
[404593267,1770319840445,-945.43791674,0.00016999,2]
[404593268,1770319840454,-945.43791674,0.00016999,2]
[404593269,1770319840463,-945.43791674,0.00016999,2]
[404593270,1770319840472,-945.43791674,0.00016999,2]
[404593271,1770319840482,-945.43791674,0.00016999,2]
[404593272,1770319840491,-945.43791674,0.00016999,2]
[404593273,1770319840500,-945.43791674,0.00016999,2]
[404593274,1770319840511,-945.43791674,0.00016999,2]
[404593275,1770319840520,-945.43791674,0.00016999,2]
[404593276,1770319840530,-945.43791674,0.00016999,2]
[404593277,1770319840539,-945.43791674,0.00016999,2]
[404593278,1770319840549,-945.43791674,0.00016999,2]
[404593279,1770319840558,-945.43791674,0.00016999,2]
[404593280,1770319840567,-945.43791674,0.00016999,2]
[404593281,1770319840576,-945.43791674,0.00016999,2]
[404593282,1770319840585,-945.43791674,0.00016999,2]
[404593283,1770319840595,-945.43791674,0.00016999,2]
[404593284,1770319840604,-945.43791674,0.00016999,2]
[404593285,1770319840613,-945.43791674,0.00016999,2]
[404593286,1770319840622,-945.43791674,0.00016999,2]
[404593287,1770319840632,-945.43791674,0.00016999,2]
[404593288,1770319840641,-945.43791674,0.00016999,2]
[404593289,1770319840651,-945.43791674,0.00016999,2]
[404593290,1770319840660,-945.43791674,0.00016999,2]
[404593291,1770319840670,-945.43791674,0.00016999,2]
[404593292,1770319840679,-945.43791674,0.00016999,2]
[404593293,1770319840688,-945.43791674,0.00016999,2]
[404593294,1770319840697,-945.43791674,0.00016999,2]
[404593295,1770319840707,-945.43791674,0.00016999,2]
[404593296,1770319840716,-945.43791674,0.00016999,2]
[404593297,1770319840725,-945.43791674,0.00016999,2]
[404593298,1770319840735,-945.43791674,0.00016999,2]
[404593299,1770319840744,-945.43791674,0.00016999,2]
[404593300,1770319840754,-945.43791674,0.00016999,2]
[404593301,1770319840767,-945.43791674,0.00016999,2]
[404593302,1770319840776,-945.43791674,0.00016999,2]
[404593303,1770319840784,-945.43791674,0.00016999,2]
[404593304,1770319840793,-945.43791674,0.00016999,2]
[404593305,1770319840803,-945.43791674,0.00016999,2]
[404593306,1770319840811,-945.43791674,0.00016999,2]
[404593307,1770319840820,-945.43791674,0.00016999,2]
[404593308,1770319840830,-945.43791674,0.00016999,2]
[404593309,1770319840839,-945.43791674,0.00016999,2]
[404593310,1770319840848,-945.43791674,0.00016999,2]
[404593311,1770319840858,-945.43791674,0.00016999,2]
[404593312,1770319840867,-945.43791674,0.00016999,2]
[404593313,1770319840876,-945.43791674,0.00016999,2]
[404593314,1770319840886,-945.43791674,0.00016999,2]
[404593315,1770319840895,-945.43791674,0.00016999,2]
[404593316,1770319840904,-945.43791674,0.00016999,2]
[404593317,1770319840913,-945.43791674,0.00016999,2]
[404593318,1770319840923,-945.43791674,0.00016999,2]
[404593319,1770319840932,-921.80196881,0.00016999,2]
[404593320,1770319840941,-921.80196881,0.00016999,2]
[404593321,1770319840950,-921.80196881,0.00016999,2]
[404593322,1770319840959,-921.80196881,0.00016999,2]
[404593323,1770319840968,-921.80196881,0.00016999,2]
[404593324,1770319840977,-921.80196881,0.00016999,2]
[404593325,1770319840986,-921.80196881,0.00016999,2]
[404593326,1770319840996,-921.80196881,0.00016999,2]
[404593327,1770319841005,-921.80196881,0.00016999,2]
[404593328,1770319841018,-921.80196881,0.00016999,2]
[404593329,1770319841027,-921.80196881,0.00016999,2]
[404593330,1770319841036,-921.80196881,0.00016999,2]
[404593331,1770319841046,-921.80196881,0.00016999,2]
[404593332,1770319841056,-921.80196881,0.00016999,2]
[404593333,1770319841065,-921.80196881,0.00016999,2]
[404593334,1770319841075,-921.80196881,0.00016999,2]
[404593335,1770319841084,-921.80196881,0.00016999,2]
[404593336,1770319841094,-921.80196881,0.00016999,2]
[404593337,1770319841103,-921.80196881,0.00016999,2]
[404593338,1770319841112,-921.80196881,0.00016999,2]
[404593339,1770319841122,-921.80196881,0.00016999,2]
[404593340,1770319841131,-921.80196881,0.00016999,2]
[404593341,1770319841141,-921.80196881,0.00016999,2]
[404593342,1770319841150,-921.80196881,0.00016999,2]
[404593343,1770319841160,-921.80196881,0.00016999,2]
[404593344,1770319841169,-921.80196881,0.00016999,2]
[404593345,1770319841179,-921.80196881,0.00016999,2]
[404593346,1770319841188,-921.80196881,0.00016999,2]
[404593347,1770319841197,-921.80196881,0.00016999,2]
[404593348,1770319841207,-921.80196881,0.00016999,2]
[404593349,1770319841216,-921.80196881,0.00016999,2]
[404593350,1770319841226,-921.80196881,0.00016999,2]
[404593351,1770319841236,-921.80196881,0.00016999,2]
[404593352,1770319841246,-500.0,0.00016999,2]
[404593353,1770319841255,-500.0,0.00016999,2]
[404593354,1770319841266,-463.45715495,0.00016999,2]
[404593355,1770319841277,-300.0,0.00017,2]
[404593356,1770319841287,-338490.37423025,0.00017,2]
[404593357,1770319841296,-160.0,0.00017,2]
[404593358,1770319841305,-255.0,0.00017081,2]
[404593359,1770319841318,-1621.30755866,0.00017125,2]
[404593360,1770319841331,-241.23,0.00017215,2]
[404593361,1770319841340,-587.0,0.00017385,2]
[404593362,1770319841351,-241.23,0.00017489,2]
[404593363,1770319841360,-265.32,0.00017491,2]
[404593364,1770319841369,-2351.0,0.00017544,2]
[404593365,1770319841379,-186.22,0.00017619,2]
[404593366,1770319841390,-241.23,0.00017763,2]
[404593367,1770319841399,-266.71138418,0.00017973,2]
[404593368,1770319841409,-500.0,0.00017973,2]
[404593369,1770319841418,-507.08166095,0.00017973,2]
[404593370,1770319841427,-500.0,0.00017973,2]
[404593371,1770319841436,-6635.2220609,0.0001799,2]
[404593372,1770319841446,-466.0,0.00018,2]
[404593373,1770319841455,-466.0,0.00018,2]
[404593374,1770319841464,-466.0,0.00018,2]
[404593375,1770319841477,-466.0,0.00018,2]
[404593376,1770319841486,-316.0,0.00018,2]
[404593377,1770319841495,-466.0,0.00018,2]
[404593378,1770319841505,-466.0,0.00018,2]
[404593379,1770319841516,-1215.45006417,0.00018,2]
[404593380,1770319841525,-1192.49835159,0.00018,2]
[404593381,1770319841685,-2001.16526783,0.00018,2]
[404593382,1770319841695,-506.0,0.0001801,2]
[404593383,1770319841704,-241.23,0.00018037,2]
[404593384,1770319841713,-1780.61587446,0.000181,2]
[404593385,1770319841722,-1259.31,0.00018272,2]
[404593386,1770319841731,-265.32,0.00018286,2]
[404593387,1770319841740,-241.23,0.00018311,2]
[404593388,1770319841750,-88544.31,0.00018356,2]
[404593389,1770319841761,-178.64683708,0.00018408,2]
[404593390,1770319841770,-200.0,0.00018446,2]
[404593391,1770319841780,-1876.27,0.0001852,2]
[404593392,1770319841789,-1000.0,0.00018521,2]
[404593393,1770319841798,-510.13526908,0.00018521,2]
[404593394,1770319841808,-3523.98,0.00018536,2]
[404593395,1770319841817,-241.23,0.00018585,2]
[404593396,1770319841826,-1000.0,0.00018692,2]
[404593397,1770319841835,-10661.5444,0.00018692,2]
[404593398,1770319841844,-8568.72,0.0001874,2]
[404593399,1770319841854,-241.23,0.00018859,2]
[404593400,1770319841863,-16795.3980932,0.00018888,2]
[404593401,1770319841873,-506.0,0.00018909,2]
[404593402,1770319841882,-350.0,0.00019,2]
[404593403,1770319841891,-5172.44267478,0.00019,2]
[404593404,1770319841900,-823.0,0.00019036,2]
[404593405,1770319841910,-498.88047735,0.00019068,2]
[404593406,1770319841919,-265.32,0.00019081,2]
[404593407,1770319841928,-234.8731037,0.00019082,2]
[404593408,1770319841938,-241.23,0.00019133,2]
[404593409,1770319841947,-20149.51,0.00019178,2]
[404593410,1770319841956,-1259.31,0.00019185,2]
[404593411,1770319841966,-500.0,0.00019186,2]
[404593412,1770319841975,-862.0,0.00019298,2]
[404593413,1770319841984,-241.23,0.00019407,2]
[404593414,1770319841993,-1621.30755866,0.00019601,2]
[404593415,1770319842003,-241.23,0.00019681,2]
[404593416,1770319842014,-506.0,0.00019807,3]
[404593417,1770319842023,-265.32,0.00019876,2]
[404593418,1770319842032,-237.3167,0.00019899,2]
[404593419,1770319842042,-237.3167,0.00019899,2]
[404593420,1770319842051,-4927.99254665,0.000199,3]
[404593421,1770319842061,-241.23,0.00019955,2]
[404593422,1770319842070,-150.0,0.00019973,2]
[404593423,1770319842080,-1534.31246611,0.0002,2]
[404593424,1770319842089,-176.62507131,0.0002,2]
[404593425,1770319842099,-25612.13278077,0.0002,2]
[404593426,1770319842108,-281019.02276726,0.0002,4]
[404593427,1770319842117,-2464.68,0.0002,2]
[404593428,1770319842127,-8300.0,0.0002,4]
[404593429,1770319842136,-3950.0,0.0002,2]
[404593430,1770319842146,-1295.38388883,0.0002,2]
[404593431,1770319842156,-1045.64601895,0.0002,2]
[404593432,1770319842166,-2865.50046951,0.0002,2]
[404593433,1770319842175,-12932.47065032,0.0002,2]
[404593434,1770319842184,-152.0,0.0002,2]
[404593435,1770319842194,-8720.0,0.0002001,2]
[404593436,1770319842204,-1259.31,0.00020099,2]
[404593437,1770319842213,-241.32534042,0.00020228,2]
[404593438,1770319842222,-9573.55,0.00020357,2]
[404593439,1770319842231,-250.0,0.00020521,2]
[404593440,1770319842241,-154.75,0.00020548,2]
[404593441,1770319842250,-1335.0,0.00020567,2]
[404593442,1770319842260,-375.16522387,0.00020655,2]
[404593443,1770319842269,-265.32,0.00020671,2]
[404593444,1770319842278,-155.22993895,0.00020695,2]
[404593445,1770319842287,-22679.78221949,0.000207,2]
[404593446,1770319842296,-506.0,0.00020705,4]
[404593447,1770319842306,-155.22993895,0.00020798,2]
[404593448,1770319842319,-1152.0,0.00020845,2]
[404593449,1770319842328,-150.0,0.00020973,2]
[404593450,1770319842337,-169.2,0.00021,7]
[404593451,1770319842346,-400.0,0.00021,2]
[404593452,1770319842355,-20000.0,0.00021,2]
[404593453,1770319842365,-40000.0,0.00021,2]
[404593454,1770319842374,-1194.73036854,0.00021,2]
[404593455,1770319842384,-197.20018103,0.00021,2]
[404593456,1770319842393,-4969.38198394,0.00021,2]
[404593457,1770319842736,-788.57291997,0.00021,2]
[404593458,1770319842789,-93260.26944629,0.00021,2]
[404593464,1770319843460,-4734.68543763,0.0001455,2]
[404593465,1770319843469,-1536.91800421,0.00016899,2]
[404593466,1770319843478,-1635.19245477,0.00021,2]
[404593467,1770319843489,-9475.22929711,0.00021,2]
[404593468,1770319843498,-1271.0,0.00021002,2]
[404593469,1770319843507,-917.0,0.00021002,2]
[404593470,1770319843519,-1205.0,0.00021002,2]
[404593471,1770319843528,-2446.0,0.00021002,2]
[404593472,1770319843537,-1330.26638289,0.00021002,2]
[404593473,1770319843568,-1323.95192,0.00021002,2]
[404593476,1770319845812,-827.78169711,0.00021002,2]
[404593477,1770319845823,-1259.31,0.00021012,2]
[404593478,1770319845832,-181.56067818,0.00021037,2]
[404593479,1770319845841,-440.14631935,0.00021068,2]
[404593480,1770319845851,-168.0,0.0002107,2]
[404593481,1770319845860,-3251.32376734,0.00021218,2]
[404593482,1770319845879,-2773.07017597,0.00021218,2]
[404593485,1770319846139,-703.25675669,0.00021218,2]
[404593486,1770319846150,-2228.08967538,0.0002137,2]
[404593490,1770319976203,5000.01,0.000144,2]
[404593491,1770319976230,5000.01,0.000144,2]
[404593492,1770319976255,5000.01,0.000144,2]
[404593493,1770319983113,-300.0,0.00014399,2]
[404593494,1770319983159,-2614.9168521,0.000144,2]
[404593495,1770319983223,-5000.01,0.000144,2]
[404593496,1770319983320,-5000.01,0.000144,2]
[404593497,1770319986236,-5000.01,0.000144,2]
[404593498,1770319986475,-5000.01,0.000144,2]
[404593499,1770319986580,-5000.01,0.000144,2]
[404593500,1770319986729,-5000.01,0.000144,2]
[404593501,1770319986861,-5000.01,0.000144,2]
[404593502,1770319986970,-5000.01,0.000144,2]
[404593503,1770319987077,-5000.01,0.000144,2]
[404593504,1770319989156,-5000.01,0.000144,2]
[404593505,1770319989288,-5000.01,0.000144,2]
[404593506,1770319989462,-5000.01,0.000144,2]
[404593507,1770320286466,10000.01,0.000143,2]
[404593508,1770320286492,10000.01,0.000143,2]
[404593509,1770320286517,10000.01,0.000143,2]
[404593510,1770320286545,10000.01,0.000143,2]
[404593511,1770320286569,10000.01,0.000143,2]
[404593512,1770320286593,10000.01,0.000143,2]
[404593513,1770320286818,10000.01,0.000143,2]
[404593514,1770320286843,10000.01,0.000143,2]
[404593515,1770320286868,912.4568,0.000143,2]
[404593516,1770320331703,7860.423685,0.00014327,2]
[404593518,1770320448720,10000.01,0.000143,2]
[404593519,1770320448747,10000.01,0.000143,2]
[404593520,1770320448778,10000.01,0.000143,2]
[404593521,1770320493521,2737.254,0.00014014,2]
[404593522,1770320493562,253.999,0.00014014,2]
[404593523,1770320587580,1706.97594915,0.000142,2]
[404593524,1770320621140,4545.9294281,0.000142,2]
[404593525,1770320643244,755.85162275,0.000142,2]
[404593526,1770320643267,127.29301382,0.000142,2]
[404593527,1770320673021,421.88962377,0.000142,2]
[404593528,1770320767586,9450.82736241,0.000142,2]
[404593529,1770320767613,10000.01,0.000142,2]
[404593530,1770320767639,10000.01,0.000142,2]
[404593531,1770320767663,549.18263759,0.000142,2]
[404593532,1770320911342,10000.01,0.000142,2]
[404593533,1770320911366,10000.01,0.000142,2]
[404593534,1770320911392,10000.01,0.000142,2]
[404593569,1770321032601,-175.25606516,0.00014139,2]
[404593570,1770321032609,-267.0,0.00014139,2]
[404593571,1770321032619,-1925.62589689,0.00014139,2]
[404593572,1770321032630,-2222.58536444,0.00014139,2]
[404593573,1770321032639,-195.0,0.00014168,2]
[404593574,1770321032648,-195.0,0.00014187,2]
[404593575,1770321032657,-64.91428533,0.00014197,2]
[404593576,1770321032687,-304.23913546,0.00014197,2]
[404593577,1770321032697,-300.0,0.00014199,2]
[404593578,1770321032707,-1200.0,0.00014199,2]
[404593579,1770321032716,-152.03924394,0.00014199,2]
[404593580,1770321032726,-500.0,0.00014199,2]
[404593581,1770321032735,-500.0,0.00014199,2]
[404593582,1770321032744,-500.0,0.00014199,2]
[404593583,1770321032754,-500.0,0.00014199,2]
[404593584,1770321032763,-500.0,0.00014199,2]
[404593585,1770321032772,-500.0,0.00014199,2]
[404593586,1770321032781,-463.45715495,0.00014199,2]
[404593587,1770321032790,-500.0,0.00014199,2]
[404593588,1770321032800,-500.0,0.00014199,2]
[404593589,1770321032810,-500.0,0.00014199,2]
[404593590,1770321032819,-500.0,0.00014199,2]
[404593591,1770321032829,-300.0,0.00014199,2]
[404593592,1770321032838,-195.0,0.000142,2]
[404593593,1770321032848,-451.51338853,0.000142,2]
[404593594,1770321032857,-113089.24147369,0.000142,2]
[404593595,1770321032868,-24949.3586765,0.000142,2]
[404593596,1770321032879,-10704.85266722,0.000142,2]
[404593597,1770321032975,-500.0,0.00014199,2]
[404593598,1770321032985,-500.0,0.00014199,2]
[404593599,1770321032995,-73070.0526578,0.000142,2]
[404593601,1770321037856,-500.0,0.00014199,2]
[404593602,1770321037867,-506.4643017,0.00014199,2]
[404593603,1770321037876,-267.67881687,0.00014199,2]
[404593604,1770321037911,-232.32118313,0.00014199,2]
[404593605,1770321037921,-133.0469904,0.00014199,2]
[404593606,1770321037932,-366.9530096,0.00014199,2]
[404593607,1770321037942,-500.0,0.00014199,2]
[404593608,1770321037951,-500.0,0.00014199,2]
[404593609,1770321037959,-238.0469904,0.00014199,2]
[404593610,1770321038019,-261.9530096,0.00014199,2]
[404593611,1770321038028,-500.0,0.00014199,2]
[404593612,1770321038038,-500.0,0.00014199,2]
[404593613,1770321038047,-99.07333605,0.00014199,2]
[404593614,1770321038059,-326.2,0.00014199,2]
[404593678,1770321040159,-74.72666395,0.00014199,2]
[404593679,1770321040180,-500.0,0.00014199,2]
[404593680,1770321040199,-500.0,0.00014199,2]
[404593681,1770321040208,-500.0,0.00014199,2]
[404593682,1770321040223,-500.0,0.00014199,2]
[404593683,1770321040232,-500.0,0.00014199,2]
[404593684,1770321040242,-500.0,0.00014199,2]
[404593685,1770321040255,-130.82479999,0.00014199,2]
[404593686,1770321040270,-315.041611,0.00014199,2]
[404593687,1770321040282,-54.13358901,0.00014199,2]
[404593688,1770321040293,-281.24641099,0.00014199,2]
[404593689,1770321040305,-218.75358901,0.00014199,2]
[404593690,1770321040316,-500.0,0.00014199,2]
[404593691,1770321040327,-500.0,0.00014199,2]
[404593692,1770321040339,-500.0,0.00014199,2]
[404593693,1770321040350,-472.42534954,0.000142,2]
[404593694,1770321040364,-996.83649973,0.000142,2]
[404593695,1770321040378,-372.80333372,0.000142,2]
[404593696,1770321040391,-3561.99998,0.000142,2]
[404593697,1770321040406,-8523.25868179,0.000142,2]
[404593698,1770321040419,-9234.66500002,0.000142,2]
[404593699,1770321040434,-6104.08331289,0.000142,2]
[404593700,1770321040451,-5019.77926986,0.000142,2]
[404593701,1770321040472,-327.84001672,0.000142,2]
[404593702,1770321040488,-605.55204883,0.000142,2]
[404593703,1770321040501,-471268.83363169,0.000142,2]
[404593704,1770321040514,-300.0,0.00014238,2]
[404593705,1770321040527,-152.03521204,0.00014297,2]
[404593706,1770321040538,-250.0,0.00014297,2]
[404593707,1770321040550,-151.0,0.00014297,2]
[404593708,1770321040559,-150.0,0.0001439,2]
[404593709,1770321040571,-500.0,0.00014391,2]
[404593710,1770321040581,-200.0,0.00014391,2]
[404593711,1770321040591,-151.0,0.00014391,2]
[404593712,1770321040600,-500.0,0.00014391,2]
[404593713,1770321040609,-151.0,0.00014391,2]
[404593714,1770321040618,-500.0,0.00014391,2]
[404593715,1770321040627,-151.0,0.00014391,2]
[404593716,1770321040637,-500.0,0.00014391,2]
[404593717,1770321040646,-151.0,0.00014391,2]
[404593718,1770321040655,-500.0,0.00014391,2]
[404593719,1770321040664,-151.0,0.00014391,2]
[404593720,1770321040674,-500.0,0.00014391,2]
[404593721,1770321040685,-151.0,0.00014391,2]
[404593722,1770321040695,-500.0,0.00014391,2]
[404593723,1770321040704,-151.0,0.00014391,2]
[404593724,1770321040713,-500.0,0.00014391,2]
[404593725,1770321040722,-151.0,0.00014391,2]
[404593726,1770321040731,-500.0,0.00014391,2]
[404593727,1770321040740,-151.0,0.00014391,2]
[404593728,1770321040750,-500.0,0.00014391,2]
[404593729,1770321040762,-500.0,0.00014391,2]
[404593730,1770321040772,-151.0,0.00014391,2]
[404593731,1770321040965,-500.0,0.00014391,2]
[404593732,1770321040975,-500.0,0.00014391,2]
[404593733,1770321040986,-151.0,0.00014391,2]
[404593734,1770321040997,-500.0,0.00014391,2]